[Event "Early-Titled-Tuesday-Blitz-February-06-2024"]
[Site "Chess.com"]
[Date "2024.02.06"]
[Round "4"]
[White "Dinosaurio_1975"]
[Black "rezamahdavi2008"]
[Result "0-1"]
[WhiteElo "2589"]
[BlackElo "2864"]
[TimeControl "180+1"]
[EndTime "8:39:54 PST"]
[Termination "rezamahdavi2008 won by checkmate"]

1. e4 {[%clk 0:03:00.9]} 1... e6 {[%clk 0:02:59.5]} 2. d4 {[%clk 0:02:59.8]}
2... d5 {[%clk 0:02:59.3]} 3. e5 {[%clk 0:03:00.4]} 3... c5 {[%clk 0:02:58.9]}
4. c3 {[%clk 0:03:00.9]} 4... Nc6 {[%clk 0:02:59.4]} 5. Nf3 {[%clk 0:03:01.4]}
5... Nge7 {[%clk 0:02:59.7]} 6. Na3 {[%clk 0:03:00.5]} 6... Nf5 {[%clk
0:02:58.8]} 7. Nc2 {[%clk 0:03:00.7]} 7... Qa5 {[%clk 0:02:58.4]} 8. dxc5 {[%clk
0:02:50.2]} 8... Qc7 {[%clk 0:02:57.4]} 9. b4 {[%clk 0:02:45.5]} 9... a5 {[%clk
0:02:33]} 10. Bb5 {[%clk 0:02:44.1]} 10... Bd7 {[%clk 0:02:22.8]} 11. Bf4 {[%clk
0:02:42.6]} 11... b6 {[%clk 0:02:03.8]} 12. cxb6 {[%clk 0:02:10.6]} 12... Qxb6
{[%clk 0:02:03.3]} 13. Bxc6 {[%clk 0:02:11.1]} 13... Qxc6 {[%clk 0:02:03.3]} 14.
O-O {[%clk 0:01:57.6]} 14... Qxc3 {[%clk 0:01:58.5]} 15. Rc1 {[%clk 0:01:57.2]}
15... Be7 {[%clk 0:01:50]} 16. Ncd4 {[%clk 0:01:50.3]} 16... Qxb4 {[%clk
0:01:47.2]} 17. Nxf5 {[%clk 0:01:49.6]} 17... Qxf4 {[%clk 0:01:41.3]} 18. Nxg7+
{[%clk 0:01:19]} 18... Kf8 {[%clk 0:01:39.7]} 19. Nh5 {[%clk 0:01:19.9]} 19...
Qa4 {[%clk 0:01:37.2]} 20. Qd2 {[%clk 0:01:16.5]} 20... h6 {[%clk 0:01:35.3]}
21. Nf6 {[%clk 0:01:07.1]} 21... Bb5 {[%clk 0:01:28]} 22. Rfe1 {[%clk
0:00:58.1]} 22... Bb4 {[%clk 0:01:22.9]} 23. Qe3 {[%clk 0:00:30.7]} 23... Qa3
{[%clk 0:01:14]} 24. Rc7 {[%clk 0:00:10]} 24... Qxe3 {[%clk 0:00:59.2]} 25. Rxe3
{[%clk 0:00:10.9]} 25... Bc4 {[%clk 0:00:46.8]} 26. Nd4 {[%clk 0:00:11]} 26...
Be7 {[%clk 0:00:31.1]} 27. Rf3 {[%clk 0:00:10.3]} 27... Bxf6 {[%clk 0:00:26.8]}
28. Rxf6 {[%clk 0:00:11.2]} 28... Rh7 {[%clk 0:00:27.2]} 29. Nxe6+ {[%clk
0:00:11.4]} 29... Kg8 {[%clk 0:00:27.7]} 30. Nd4 {[%clk 0:00:09.8]} 30... Bxa2
{[%clk 0:00:28.1]} 31. h4 {[%clk 0:00:09.8]} 31... Bc4 {[%clk 0:00:28.3]} 32. e6
{[%clk 0:00:05.9]} 32... fxe6 {[%clk 0:00:28.1]} 33. Rg6+ {[%clk 0:00:04.9]}
33... Kh8 {[%clk 0:00:28.2]} 34. Rc5 {[%clk 0:00:02.8]} 34... a4 {[%clk
0:00:28.3]} 35. Nc2 {[%clk 0:00:02.2]} 35... Re7 {[%clk 0:00:20.6]} 36. Na3
{[%clk 0:00:02.6]} 36... Kh7 {[%clk 0:00:19.9]} 37. Rf6 {[%clk 0:00:02.9]} 37...
Kg7 {[%clk 0:00:20]} 38. Rf4 {[%clk 0:00:02.7]} 38... Bb3 {[%clk 0:00:18.7]} 39.
Rb4 {[%clk 0:00:02.4]} 39... Rf8 {[%clk 0:00:17.3]} 40. g3 {[%clk 0:00:02.9]}
40... Ref7 {[%clk 0:00:17.3]} 41. f4 {[%clk 0:00:03.3]} 41... Kf6 {[%clk
0:00:17.6]} 42. Kf2 {[%clk 0:00:03.1]} 42... Rg7 {[%clk 0:00:17.9]} 43. Kf3
{[%clk 0:00:03.3]} 43... Rfg8 {[%clk 0:00:18.4]} 44. g4 {[%clk 0:00:01.6]} 44...
Rxg4 {[%clk 0:00:18.7]} 45. Rb6 {[%clk 0:00:01.9]} 45... Rg3+ {[%clk 0:00:19]}
46. Kf2 {[%clk 0:00:02.6]} 46... Rg2+ {[%clk 0:00:19.9]} 47. Kf1 {[%clk
0:00:02.9]} 47... Ra2 {[%clk 0:00:19.1]} 48. Nb5 {[%clk 0:00:03.4]} 48... Bc4+
{[%clk 0:00:19]} 49. Ke1 {[%clk 0:00:03.5]} 49... Rg1# {[%clk 0:00:18.9]} 0-1

[Event "Early-Titled-Tuesday-Blitz-February-06-2024"]
[Site "Chess.com"]
[Date "2024.02.06"]
[Round "4"]
[White "Aariow"]
[Black "NowInChess"]
[Result "1-0"]
[WhiteElo "2502"]
[BlackElo "2324"]
[TimeControl "180+1"]
[EndTime "8:39:54 PST"]
[Termination "Aariow won by resignation"]

1. d4 {[%clk 0:02:49.3]} 1... Nf6 {[%clk 0:02:59.3]} 2. c4 {[%clk 0:02:49.5]}
2... c5 {[%clk 0:02:59.6]} 3. d5 {[%clk 0:02:49.3]} 3... b5 {[%clk 0:02:59.8]}
4. cxb5 {[%clk 0:02:50.2]} 4... a6 {[%clk 0:03:00]} 5. e3 {[%clk 0:02:50.6]}
5... e6 {[%clk 0:02:46]} 6. Nc3 {[%clk 0:02:47.4]} 6... Bb7 {[%clk 0:02:44.5]}
7. dxe6 {[%clk 0:02:41.3]} 7... fxe6 {[%clk 0:02:44.1]} 8. Nf3 {[%clk
0:02:41.2]} 8... d5 {[%clk 0:02:43.1]} 9. Be2 {[%clk 0:02:39.6]} 9... Bd6 {[%clk
0:02:41.6]} 10. O-O {[%clk 0:02:35.7]} 10... O-O {[%clk 0:02:41.1]} 11. bxa6
{[%clk 0:02:29.8]} 11... Nxa6 {[%clk 0:02:36.9]} 12. e4 {[%clk 0:02:28.4]} 12...
dxe4 {[%clk 0:02:24.5]} 13. Ng5 {[%clk 0:02:27]} 13... Qe7 {[%clk 0:02:08.9]}
14. Qb3 {[%clk 0:02:16.8]} 14... Bd5 {[%clk 0:01:38.8]} 15. Qd1 {[%clk
0:01:01.1]} 15... h6 {[%clk 0:01:25.6]} 16. Nh3 {[%clk 0:01:00.9]} 16... Nb4
{[%clk 0:01:25.2]} 17. Bf4 {[%clk 0:00:58.2]} 17... Nd3 {[%clk 0:01:06.8]} 18.
Bxd3 {[%clk 0:00:49.1]} 18... exd3 {[%clk 0:01:06.8]} 19. Qxd3 {[%clk 0:00:50]}
19... c4 {[%clk 0:01:03]} 20. Qe2 {[%clk 0:00:48.2]} 20... Ne4 {[%clk 0:00:47]}
21. Bxd6 {[%clk 0:00:12.8]} 21... Nxc3 {[%clk 0:00:46.6]} 22. Qe5 {[%clk
0:00:13.5]} 22... Rf5 {[%clk 0:00:30.7]} 23. bxc3 {[%clk 0:00:07.1]} 23... Rxe5
{[%clk 0:00:30.1]} 24. Bxe7 {[%clk 0:00:07.7]} 24... Re8 {[%clk 0:00:26.5]} 25.
Bd6 {[%clk 0:00:07.8]} 25... Re2 {[%clk 0:00:26]} 26. a4 {[%clk 0:00:08.3]}
26... Rc2 {[%clk 0:00:25.2]} 27. Be5 {[%clk 0:00:08.2]} 27... Ra8 {[%clk
0:00:20.9]} 28. a5 {[%clk 0:00:07.3]} 28... Rb2 {[%clk 0:00:18.6]} 29. Nf4
{[%clk 0:00:07]} 29... Be4 {[%clk 0:00:15.6]} 30. a6 {[%clk 0:00:06.2]} 30...
Bd3 {[%clk 0:00:14.9]} 31. Rfd1 {[%clk 0:00:05.1]} 31... Rb6 {[%clk 0:00:13]}
32. a7 {[%clk 0:00:05.6]} 32... Rb7 {[%clk 0:00:13.1]} 33. Bd4 {[%clk
0:00:06.1]} 33... e5 {[%clk 0:00:12.1]} 34. Bxe5 {[%clk 0:00:06.7]} 34... Rbxa7
{[%clk 0:00:12.2]} 35. Rxa7 {[%clk 0:00:06.8]} 35... Rxa7 {[%clk 0:00:13.1]} 36.
Bd4 {[%clk 0:00:07.4]} 36... Ra2 {[%clk 0:00:11.7]} 37. h4 {[%clk 0:00:07.4]}
37... Be2 {[%clk 0:00:12]} 38. Nxe2 {[%clk 0:00:06.5]} 38... Rxe2 {[%clk
0:00:12.9]} 39. g3 {[%clk 0:00:07.1]} 39... Rc2 {[%clk 0:00:12.7]} 40. Kg2
{[%clk 0:00:07.7]} 40... Kf7 {[%clk 0:00:12.5]} 41. Re1 {[%clk 0:00:08.2]} 41...
g6 {[%clk 0:00:12.9]} 42. Re5 {[%clk 0:00:08.6]} 42... h5 {[%clk 0:00:12.8]} 43.
Rc5 {[%clk 0:00:09.1]} 43... Re2 {[%clk 0:00:13]} 44. Rxc4 {[%clk 0:00:09.6]}
44... Re6 {[%clk 0:00:13.9]} 45. Rc7+ {[%clk 0:00:09.5]} 45... Ke8 {[%clk
0:00:14.8]} 46. Kf3 {[%clk 0:00:09.6]} 46... Kd8 {[%clk 0:00:15.3]} 47. Rg7
{[%clk 0:00:09.8]} 47... Kc8 {[%clk 0:00:15.3]} 48. Kf4 {[%clk 0:00:10.3]} 48...
Kd8 {[%clk 0:00:15.1]} 49. Kg5 {[%clk 0:00:10.8]} 49... Rc6 {[%clk 0:00:15.5]}
50. Rxg6 {[%clk 0:00:11.1]} 50... Rc7 {[%clk 0:00:15.7]} 51. Bb6 {[%clk
0:00:10.9]} 51... Kd7 {[%clk 0:00:16.3]} 52. Rg7+ {[%clk 0:00:10.9]} 1-0

[Event "Early-Titled-Tuesday-Blitz-February-06-2024"]
[Site "Chess.com"]
[Date "2024.02.06"]
[Round "4"]
[White "Harsha_Bharathakoti"]
[Black "jaskol95"]
[Result "1-0"]
[WhiteElo "2926"]
[BlackElo "2606"]
[TimeControl "180+1"]
[EndTime "8:39:56 PST"]
[Termination "Harsha_Bharathakoti won by resignation"]

1. Nf3 {[%clk 0:03:00.9]} 1... d5 {[%clk 0:02:57]} 2. e3 {[%clk 0:03:01]} 2...
Nf6 {[%clk 0:02:56.4]} 3. c4 {[%clk 0:03:00.9]} 3... c6 {[%clk 0:02:56.3]} 4.
Nc3 {[%clk 0:03:00.6]} 4... e6 {[%clk 0:02:53.8]} 5. b3 {[%clk 0:03:00.5]} 5...
Bd6 {[%clk 0:02:52.7]} 6. Bb2 {[%clk 0:03:00.6]} 6... Nbd7 {[%clk 0:02:51.8]} 7.
Be2 {[%clk 0:02:55.8]} 7... b6 {[%clk 0:02:51.7]} 8. Rc1 {[%clk 0:02:48.5]} 8...
Bb7 {[%clk 0:02:52]} 9. cxd5 {[%clk 0:02:45.9]} 9... exd5 {[%clk 0:02:45.3]} 10.
d4 {[%clk 0:02:44.1]} 10... O-O {[%clk 0:02:44.4]} 11. O-O {[%clk 0:02:44.9]}
11... Qe7 {[%clk 0:02:39.5]} 12. Re1 {[%clk 0:02:44.8]} 12... Rac8 {[%clk
0:02:30.5]} 13. Bf1 {[%clk 0:02:43]} 13... Ne4 {[%clk 0:02:25.4]} 14. Nxe4
{[%clk 0:02:35.6]} 14... Qxe4 {[%clk 0:02:23.8]} 15. Bd3 {[%clk 0:02:05]} 15...
Qg4 {[%clk 0:02:06.8]} 16. e4 {[%clk 0:02:04.5]} 16... Rfe8 {[%clk 0:01:49]} 17.
e5 {[%clk 0:01:53.5]} 17... Bb4 {[%clk 0:01:47]} 18. Re3 {[%clk 0:01:38.8]}
18... Nf8 {[%clk 0:01:46.4]} 19. h3 {[%clk 0:01:06.5]} 19... Qh5 {[%clk
0:01:39]} 20. Rc2 {[%clk 0:00:50.5]} 20... c5 {[%clk 0:01:17.7]} 21. a3 {[%clk
0:00:47.6]} 21... Ba5 {[%clk 0:01:02.3]} 22. Rc1 {[%clk 0:00:34.6]} 22... Ne6
{[%clk 0:00:48.5]} 23. Be2 {[%clk 0:00:23.4]} 23... Qh6 {[%clk 0:00:46.2]} 24.
Bf1 {[%clk 0:00:19.5]} 24... cxd4 {[%clk 0:00:14.7]} 25. Nxd4 {[%clk 0:00:18.4]}
25... Nxd4 {[%clk 0:00:13.9]} 26. Bxd4 {[%clk 0:00:17.9]} 26... Rxc1 {[%clk
0:00:13.5]} 27. Qxc1 {[%clk 0:00:18.8]} 27... Rc8 {[%clk 0:00:11.8]} 28. Qd1
{[%clk 0:00:16.7]} 28... b5 {[%clk 0:00:08.5]} 29. Bxb5 {[%clk 0:00:12.6]} 29...
Bb6 {[%clk 0:00:08.1]} 30. Re1 {[%clk 0:00:08.2]} 30... Bxd4 {[%clk 0:00:04.8]}
31. Qxd4 {[%clk 0:00:09.1]} 31... Qg6 {[%clk 0:00:05.2]} 32. Bd3 {[%clk
0:00:08.9]} 32... Qg5 {[%clk 0:00:05]} 33. Qxa7 {[%clk 0:00:06.6]} 33... Bc6
{[%clk 0:00:03.9]} 34. Qe3 {[%clk 0:00:05.1]} 34... Qe7 {[%clk 0:00:03.2]} 35.
b4 {[%clk 0:00:04.5]} 35... g6 {[%clk 0:00:02.8]} 36. Rc1 {[%clk 0:00:05.1]}
36... Bb7 {[%clk 0:00:02.6]} 37. Rxc8+ {[%clk 0:00:04.8]} 37... Bxc8 {[%clk
0:00:03.5]} 38. Qc5 {[%clk 0:00:05.3]} 38... Qe8 {[%clk 0:00:03.6]} 39. Qxd5
{[%clk 0:00:04.8]} 39... Be6 {[%clk 0:00:04]} 40. Qc5 {[%clk 0:00:04.8]} 40...
Qd8 {[%clk 0:00:04.4]} 41. Be4 {[%clk 0:00:05]} 41... Qd1+ {[%clk 0:00:04.5]}
42. Kh2 {[%clk 0:00:05.8]} 42... Qe2 {[%clk 0:00:04.8]} 43. Bf3 {[%clk 0:00:06]}
43... Qd2 {[%clk 0:00:04.4]} 44. b5 {[%clk 0:00:06.4]} 44... Qb2 {[%clk
0:00:03]} 45. b6 {[%clk 0:00:06.6]} 45... Kg7 {[%clk 0:00:02.3]} 46. b7 {[%clk
0:00:06.5]} 46... h5 {[%clk 0:00:02.8]} 47. Qd6 {[%clk 0:00:06.2]} 47... Qxa3
{[%clk 0:00:01.5]} 48. Qxa3 {[%clk 0:00:06.1]} 1-0

[Event "Early-Titled-Tuesday-Blitz-February-06-2024"]
[Site "Chess.com"]
[Date "2024.02.06"]
[Round "4"]
[White "Arifarsky"]
[Black "Irishchessman16"]
[Result "0-1"]
[WhiteElo "2690"]
[BlackElo "2520"]
[TimeControl "180+1"]
[EndTime "8:39:56 PST"]
[Termination "Irishchessman16 won by checkmate"]

1. e4 {[%clk 0:03:00.9]} 1... c5 {[%clk 0:02:59.2]} 2. Nf3 {[%clk 0:03:01]} 2...
e6 {[%clk 0:02:57.5]} 3. c3 {[%clk 0:02:49.8]} 3... d5 {[%clk 0:02:56.8]} 4. e5
{[%clk 0:02:41.1]} 4... d4 {[%clk 0:02:54.4]} 5. g3 {[%clk 0:02:41.6]} 5... Nc6
{[%clk 0:02:45.7]} 6. Bg2 {[%clk 0:02:42]} 6... Nge7 {[%clk 0:02:40.8]} 7. O-O
{[%clk 0:02:38.3]} 7... Ng6 {[%clk 0:02:39.6]} 8. Re1 {[%clk 0:02:38.4]} 8...
Qc7 {[%clk 0:02:37.2]} 9. Qe2 {[%clk 0:02:26.4]} 9... Be7 {[%clk 0:02:32]} 10.
d3 {[%clk 0:02:25.4]} 10... O-O {[%clk 0:02:24.3]} 11. Na3 {[%clk 0:02:25.5]}
11... a6 {[%clk 0:02:22]} 12. h4 {[%clk 0:02:22.5]} 12... f6 {[%clk 0:02:20.9]}
13. exf6 {[%clk 0:02:12.6]} 13... Bxf6 {[%clk 0:02:18.9]} 14. h5 {[%clk
0:02:06.8]} 14... Nge7 {[%clk 0:02:18.7]} 15. Bf4 {[%clk 0:02:02.7]} 15... Qd8
{[%clk 0:02:12.4]} 16. Rac1 {[%clk 0:01:50.1]} 16... Nd5 {[%clk 0:01:54.8]} 17.
Bd2 {[%clk 0:01:50.2]} 17... dxc3 {[%clk 0:01:47.9]} 18. bxc3 {[%clk 0:01:49.9]}
18... b6 {[%clk 0:01:22]} 19. Nc4 {[%clk 0:01:35.1]} 19... Ra7 {[%clk
0:01:21.5]} 20. Nfe5 {[%clk 0:01:28.3]} 20... Nce7 {[%clk 0:01:11.2]} 21. Ng4
{[%clk 0:01:09.3]} 21... Nf5 {[%clk 0:00:40.1]} 22. Be4 {[%clk 0:01:00.2]} 22...
Raf7 {[%clk 0:00:28.8]} 23. Nce5 {[%clk 0:00:57.9]} 23... Bxe5 {[%clk
0:00:25.4]} 24. Nxe5 {[%clk 0:00:58.8]} 24... Rc7 {[%clk 0:00:24]} 25. Nf3
{[%clk 0:00:40.8]} 25... Nd6 {[%clk 0:00:22]} 26. Ng5 {[%clk 0:00:24]} 26...
Nxe4 {[%clk 0:00:21.9]} 27. Nxe4 {[%clk 0:00:20.3]} 27... h6 {[%clk 0:00:19.7]}
28. c4 {[%clk 0:00:19.8]} 28... Ne7 {[%clk 0:00:13.9]} 29. Bf4 {[%clk
0:00:19.6]} 29... Nf5 {[%clk 0:00:13.5]} 30. Bxc7 {[%clk 0:00:19.4]} 30... Qxc7
{[%clk 0:00:13.8]} 31. Nd2 {[%clk 0:00:19.1]} 31... Nd4 {[%clk 0:00:13.3]} 32.
Qe5 {[%clk 0:00:18.8]} 32... Qf7 {[%clk 0:00:13.7]} 33. f4 {[%clk 0:00:17.6]}
33... Bb7 {[%clk 0:00:12.6]} 34. Re3 {[%clk 0:00:16.9]} 34... Re8 {[%clk
0:00:12.1]} 35. Rb1 {[%clk 0:00:15.9]} 35... Nf5 {[%clk 0:00:11.6]} 36. Rxb6
{[%clk 0:00:15.2]} 36... Nxe3 {[%clk 0:00:08.9]} 37. Qxe3 {[%clk 0:00:15.9]}
37... Ba8 {[%clk 0:00:09.1]} 38. Qxc5 {[%clk 0:00:15.5]} 38... e5 {[%clk
0:00:08]} 39. Qe3 {[%clk 0:00:09.6]} 39... Qxh5 {[%clk 0:00:07.8]} 40. Ne4
{[%clk 0:00:08.9]} 40... exf4 {[%clk 0:00:07.9]} 41. Qxf4 {[%clk 0:00:09.2]}
41... Qd1+ {[%clk 0:00:07.4]} 42. Kf2 {[%clk 0:00:09.1]} 42... Qxd3 {[%clk
0:00:06.9]} 43. Nf6+ {[%clk 0:00:08.6]} 43... gxf6 {[%clk 0:00:06.7]} 44. Qg4+
{[%clk 0:00:09.2]} 44... Kh7 {[%clk 0:00:06.3]} 45. Rxf6 {[%clk 0:00:08.4]}
45... Qe3+ {[%clk 0:00:05.7]} 46. Kf1 {[%clk 0:00:08.3]} 46... Qe1# {[%clk
0:00:05.7]} 0-1

[Event "Early-Titled-Tuesday-Blitz-February-06-2024"]
[Site "Chess.com"]
[Date "2024.02.06"]
[Round "4"]
[White "Timerkhanov"]
[Black "KhazhatulyAlikhan"]
[Result "1-0"]
[WhiteElo "2638"]
[BlackElo "2397"]
[TimeControl "180+1"]
[EndTime "8:39:59 PST"]
[Termination "Timerkhanov won by checkmate"]

1. d4 {[%clk 0:03:00.9]} 1... d5 {[%clk 0:02:59.7]} 2. Bf4 {[%clk 0:03:00.3]}
2... Nf6 {[%clk 0:02:56.8]} 3. e3 {[%clk 0:03:00.4]} 3... Bf5 {[%clk 0:02:51]}
4. c4 {[%clk 0:02:59.3]} 4... e6 {[%clk 0:02:44.5]} 5. Nc3 {[%clk 0:02:59.7]}
5... Bd6 {[%clk 0:02:40.8]} 6. Bxd6 {[%clk 0:02:54.2]} 6... Qxd6 {[%clk
0:02:41.7]} 7. cxd5 {[%clk 0:02:39.2]} 7... exd5 {[%clk 0:02:40.9]} 8. Qb3
{[%clk 0:02:39.4]} 8... b6 {[%clk 0:02:40.2]} 9. Nf3 {[%clk 0:02:26.3]} 9... O-O
{[%clk 0:02:38.6]} 10. Be2 {[%clk 0:02:26.3]} 10... Nbd7 {[%clk 0:02:28.1]} 11.
O-O {[%clk 0:02:26.1]} 11... c6 {[%clk 0:02:22.4]} 12. Rac1 {[%clk 0:02:25.1]}
12... Rac8 {[%clk 0:02:22.3]} 13. Qa4 {[%clk 0:02:23.8]} 13... Rc7 {[%clk
0:02:20.1]} 14. h3 {[%clk 0:02:21.9]} 14... Ne4 {[%clk 0:02:09.2]} 15. Nxe4
{[%clk 0:02:18.1]} 15... Bxe4 {[%clk 0:02:10.1]} 16. Rfd1 {[%clk 0:02:12.6]}
16... Bxf3 {[%clk 0:01:56.3]} 17. Bxf3 {[%clk 0:02:12.6]} 17... Re8 {[%clk
0:01:57.1]} 18. Rc3 {[%clk 0:02:11.5]} 18... Re6 {[%clk 0:01:53.2]} 19. Rdc1
{[%clk 0:02:11.4]} 19... g6 {[%clk 0:01:43.5]} 20. b4 {[%clk 0:01:56.5]} 20...
b5 {[%clk 0:01:36.5]} 21. Qa6 {[%clk 0:01:40.3]} 21... Nb6 {[%clk 0:01:33.8]}
22. Rc5 {[%clk 0:01:40]} 22... Na4 {[%clk 0:01:23.2]} 23. R5c2 {[%clk
0:01:18.4]} 23... Nb6 {[%clk 0:01:07.7]} 24. g3 {[%clk 0:01:14.1]} 24... Qxb4
{[%clk 0:00:59.7]} 25. Rc5 {[%clk 0:01:07.2]} 25... Qd2 {[%clk 0:00:30.6]} 26.
R1c2 {[%clk 0:01:00.4]} 26... Qe1+ {[%clk 0:00:29.9]} 27. Kg2 {[%clk 0:01:00.8]}
27... Rf6 {[%clk 0:00:20.9]} 28. Rxb5 {[%clk 0:00:39.5]} 28... Rxf3 {[%clk
0:00:18.6]} 29. Rxb6 {[%clk 0:00:34.3]} 29... Rxg3+ {[%clk 0:00:10.3]} 30. Kxg3
{[%clk 0:00:22.8]} 30... axb6 {[%clk 0:00:06]} 31. Qxb6 {[%clk 0:00:23]} 31...
Qg1+ {[%clk 0:00:05.6]} 32. Kf3 {[%clk 0:00:21]} 32... Qd1+ {[%clk 0:00:03.9]}
33. Kg2 {[%clk 0:00:19.4]} 33... Qxc2 {[%clk 0:00:02.8]} 34. Qxc7 {[%clk
0:00:19.8]} 34... Qe4+ {[%clk 0:00:03.3]} 35. Kg3 {[%clk 0:00:18.2]} 35... Qc2
{[%clk 0:00:01.5]} 36. Qb8+ {[%clk 0:00:15.8]} 36... Kg7 {[%clk 0:00:01.6]} 37.
a3 {[%clk 0:00:14.8]} 37... h5 {[%clk 0:00:01.9]} 38. h4 {[%clk 0:00:14.4]}
38... Qb3 {[%clk 0:00:01.4]} 39. Qxb3 {[%clk 0:00:12.3]} 39... Kf6 {[%clk
0:00:01.6]} 40. a4 {[%clk 0:00:13.2]} 40... Kf5 {[%clk 0:00:01.8]} 41. a5 {[%clk
0:00:13.7]} 41... Ke4 {[%clk 0:00:02.3]} 42. a6 {[%clk 0:00:14.6]} 42... Kf5
{[%clk 0:00:02.6]} 43. a7 {[%clk 0:00:15.5]} 43... f6 {[%clk 0:00:03.5]} 44.
a8=Q {[%clk 0:00:16.4]} 44... Ke4 {[%clk 0:00:03.5]} 45. Qc8 {[%clk 0:00:16.4]}
45... f5 {[%clk 0:00:02.3]} 46. Qe6# {[%clk 0:00:17.3]} 1-0

[Event "Early-Titled-Tuesday-Blitz-February-06-2024"]
[Site "Chess.com"]
[Date "2024.02.06"]
[Round "4"]
[White "Roedor"]
[Black "SouS007"]
[Result "0-1"]
[WhiteElo "2336"]
[BlackElo "2508"]
[TimeControl "180+1"]
[EndTime "8:39:59 PST"]
[Termination "SouS007 won on time"]

1. c4 {[%clk 0:02:57.8]} 1... c6 {[%clk 0:02:56.5]} 2. Nf3 {[%clk 0:02:51.8]}
2... Nf6 {[%clk 0:02:53.6]} 3. g3 {[%clk 0:02:49.7]} 3... g6 {[%clk 0:02:51.6]}
4. Bg2 {[%clk 0:02:50.2]} 4... Bg7 {[%clk 0:02:51.5]} 5. O-O {[%clk 0:02:50.7]}
5... O-O {[%clk 0:02:52.2]} 6. d4 {[%clk 0:02:49.6]} 6... d5 {[%clk 0:02:53.1]}
7. Ne5 {[%clk 0:02:49.4]} 7... dxc4 {[%clk 0:02:44.4]} 8. Nxc4 {[%clk
0:02:48.1]} 8... Be6 {[%clk 0:02:41.2]} 9. Ne5 {[%clk 0:02:46.4]} 9... Nbd7
{[%clk 0:02:37.7]} 10. Nd3 {[%clk 0:02:45.5]} 10... Bd5 {[%clk 0:02:32.7]} 11.
Bh3 {[%clk 0:02:41.6]} 11... Re8 {[%clk 0:02:15.8]} 12. Nc3 {[%clk 0:02:40.4]}
12... e5 {[%clk 0:02:13.3]} 13. dxe5 {[%clk 0:02:39.8]} 13... Nxe5 {[%clk
0:02:14.2]} 14. Nxe5 {[%clk 0:02:38.5]} 14... Rxe5 {[%clk 0:02:15.1]} 15. Nxd5
{[%clk 0:02:34.4]} 15... Rxd5 {[%clk 0:02:11.5]} 16. Qc2 {[%clk 0:02:31.6]}
16... Qe7 {[%clk 0:02:02.1]} 17. Be3 {[%clk 0:02:15.6]} 17... Re8 {[%clk
0:01:49.9]} 18. Rfe1 {[%clk 0:02:09.5]} 18... Rh5 {[%clk 0:01:43.2]} 19. Bg2
{[%clk 0:02:06.6]} 19... Ng4 {[%clk 0:01:39.8]} 20. Bxa7 {[%clk 0:02:01.2]}
20... Rxh2 {[%clk 0:01:34.5]} 21. Bf3 {[%clk 0:01:28.3]} 21... Qg5 {[%clk
0:01:19]} 22. Bxg4 {[%clk 0:01:20.8]} 22... Qh6 {[%clk 0:01:13.3]} 23. Bf3
{[%clk 0:01:17.4]} 23... Qh3 {[%clk 0:01:13]} 24. Rad1 {[%clk 0:01:04.8]} 24...
Bf6 {[%clk 0:00:53.6]} 25. Bd4 {[%clk 0:00:48.2]} 25... Bg5 {[%clk 0:00:38.9]}
26. a4 {[%clk 0:00:24.2]} 26... h5 {[%clk 0:00:36.8]} 27. Qc5 {[%clk 0:00:18.5]}
27... Be7 {[%clk 0:00:32.2]} 28. Qe5 {[%clk 0:00:17.5]} 28... f6 {[%clk
0:00:31.7]} 29. Qe6+ {[%clk 0:00:17.5]} 29... Qxe6 {[%clk 0:00:31.5]} 30. Kxh2
{[%clk 0:00:16.6]} 30... h4 {[%clk 0:00:32]} 31. Kg2 {[%clk 0:00:12.8]} 31...
h3+ {[%clk 0:00:29.8]} 32. Kh2 {[%clk 0:00:13]} 32... Bd6 {[%clk 0:00:29.4]} 33.
Bc3 {[%clk 0:00:10.8]} 33... Qf5 {[%clk 0:00:29.2]} 34. Rd4 {[%clk 0:00:10.4]}
34... Be5 {[%clk 0:00:28.9]} 35. Re4 {[%clk 0:00:08.8]} 35... Rd8 {[%clk
0:00:26.6]} 36. Bxe5 {[%clk 0:00:08.9]} 36... fxe5 {[%clk 0:00:27.5]} 37. Rc1
{[%clk 0:00:08.1]} 37... Rd4 {[%clk 0:00:25]} 38. Rc4 {[%clk 0:00:07.2]} 38...
g5 {[%clk 0:00:21.7]} 39. Rcxd4 {[%clk 0:00:06.9]} 39... exd4 {[%clk 0:00:22.6]}
40. Rxd4 {[%clk 0:00:06.9]} 40... Qc5 {[%clk 0:00:21.9]} 41. Rg4 {[%clk
0:00:06.6]} 41... Qxf2+ {[%clk 0:00:21.3]} 42. Kxh3 {[%clk 0:00:06.5]} 42... Qe3
{[%clk 0:00:21.1]} 43. b4 {[%clk 0:00:05.6]} 43... Qc1 {[%clk 0:00:21.4]} 44. b5
{[%clk 0:00:05.8]} 44... Qf1+ {[%clk 0:00:21.5]} 45. Kh2 {[%clk 0:00:05.9]}
45... Qf2+ {[%clk 0:00:21.2]} 46. Kh3 {[%clk 0:00:05.6]} 46... Qf1+ {[%clk
0:00:21.7]} 47. Kh2 {[%clk 0:00:05.7]} 47... Qc1 {[%clk 0:00:22.4]} 48. Rxg5+
{[%clk 0:00:04.4]} 48... Qxg5 {[%clk 0:00:22.1]} 49. bxc6 {[%clk 0:00:03.8]}
49... bxc6 {[%clk 0:00:23]} 50. Kg2 {[%clk 0:00:04.2]} 50... c5 {[%clk 0:00:23]}
51. a5 {[%clk 0:00:04.5]} 51... c4 {[%clk 0:00:23.6]} 52. a6 {[%clk 0:00:05]}
52... Qa5 {[%clk 0:00:24.2]} 53. Bb7 {[%clk 0:00:02.4]} 53... c3 {[%clk
0:00:24.7]} 0-1